Cogmind - Beta 15 @@@ ROGUE MODE // 2025.08.24 @ 15:43:21 Player: shapeshifter Result: Destroyed by L-61 Swordsman with Power Sword Performance ------------- Evolutions (8) 4000 Regions Visited (24) 4800 Robots Destroyed (225) 1125 Value Destroyed (11490) 11490 Prototype IDs (49) 980 Alien Tech Used (3) 600 Bonus (10217) 10217 TOTAL SCORE: 33212 Bonus ------- Triggered High Security 500 High Alert Combat Kills 4158 Follower Combat Kills 2786 Awakened Behemoth Slayer 1000 Entered DSFs 500 Aligned with FarCom 300 Met Zhirov 300 Built Enhanced Grunts 300 Met R17 at Cetus 500 Friendly Fire -127 Cogmind --------- Core Integrity 0/1450 Matter 4/300 Energy 84/100 System Corruption 39% Temperature Cool (0) Movement Core (700) Ox13 Location -2/Research Parts ------- > --- POWER (4) -------- (None) > --- PROPULSION (6) --- (None) > --- UTILITY (9) ------ High-capacity Storage Unit Advanced Signal Interpreter > --- WEAPON (5) ------- CR-A16's Behemoth Slayer > --- INVENTORY (20) --- Advanced Heavy Treads Biometal Heavy Treads Centrium Leg High-density Centrium Leg High-density Centrium Leg Potential Leg High-capacity Storage Unit Advanced Variable Charge Gun Enhanced Quantum Rifle HERF Cannon Heavy Machine Gun Heavy Machine Gun KE Penetrator Micro-nuke Launcher Segregator Force Lance Peak State ------------ > --- POWER ------------ Light Antimatter Reactor Heavy Antimatter Reactor Quantum Reactor Quantum Reactor > --- PROPULSION ------- Advanced Heavy Treads Biometal Heavy Treads Advanced Heavy Siege Treads > --- UTILITY ---------- Advanced Heat Sink Advanced Heat Sink Advanced Heat Sink Huge Storage Unit Improved Energy Well Advanced Signal Interpreter Weapon Cycler Advanced Force Field Advanced Component Analysis Suite > --- WEAPON ----------- Gamma Rifle Enhanced Quantum Rifle Enhanced Quantum Rifle Matter Neutralizer CR-A16's Behemoth Slayer > --- INVENTORY -------- Light Antimatter Reactor Light Quantum Reactor Light Quantum Reactor Centrium Leg High-density Centrium Leg High-density Centrium Leg High-density Centrium Leg High-density Centrium Leg High-density Centrium Leg High-density Centrium Leg High-density Centrium Leg High-density Centrium Leg Potential Leg Potential Leg High-capacity Storage Unit Advanced Phase Shifter Advanced Force Field Advanced Force Field Gamma Rifle Advanced Variable Charge Gun HERF Cannon Micro-nuke Launcher Micro-nuke Launcher Micro-nuke Launcher Force Lance [Rating: 196] Favorites ----------- Power Quantum Reactor Engine Deuterium Engine Power Core Nuclear Core Reactor Quantum Reactor Propulsion Centrium Heavy Treads Treads Centrium Heavy Treads Leg Improved Carbon-fiber Leg Flight Unit Improved Flight Unit Utility High-capacity Storage Unit Device Improved Cooling System Storage High-capacity Storage Unit Processor Advanced Signal Interpreter Hackware Makeshift Hacking Suite Protection Centrium Medium Armor Plating Weapon Advanced Variable Charge Gun Energy Gun Advanced Variable Charge Gun Energy Cannon Heavy Ion Cannon Ballistic Gun Advanced KE Penetrator Ballistic Cannon Hardcell Cannon Launcher Micro-nuke Launcher Slashing Weapon Phasing Sabre Piercing Weapon CR-A16's Behemoth Slayer Build | -11 -10 -10 -10 -9 -8 -7 -7 -7 -7 -6 -6 -6 -6 -6 -6 -5 -5 -5 -5 -4 -4 -3 -3 -2 ------- Run | Yrd Mat Min Exi Min Mat Fac Low Low Zio Pro Fac Was Fac Ext Cet Fac Upp Upp Zhi Pro Fac Res DSF Res Slots Evolved 16 | . . . . . 4 2 . . . . 2 . . . . 2 . . . . 2 2 . 2 Power 3 | . . . . . . 1 . . . . . . . . . . . . . . 1 . . 1 Propulsion 4 | . . . . . 2 . . . . . . . . . . 2 . . . . . . . . Utility 7 | . . . . . . 1 . . . . 2 . . . . . . . . . 1 2 . 1 Weapon 2 | . . . . . 2 . . . . . . . . . . . . . . . . . . . Parts Attached 191 | 6 2 . . 2 17 8 8 11 2 4 2 . 11 6 19 5 4 2 2 1 19 2 2 56 Power 28 | 1 . . . 1 2 1 1 1 . . . . . 1 6 . . . 1 . 2 . . 11 Engine 6 | 1 . . . 1 1 1 1 1 . . . . . . . . . . . . . . . . Core 2 | . . . . . 1 . . . . . . . . 1 . . . . . . . . . . Reactor 20 | . . . . . . . . . . . . . . . 6 . . . 1 . 2 . . 11 Propulsion 48 | 2 . . . . 4 1 3 5 . 3 . . 4 . 3 1 . . . . 2 . . 20 Treads 21 | 2 . . . . . . . 5 . . . . 2 . 3 1 . . . . 2 . . 6 Leg 26 | . . . . . 4 . 3 . . 3 . . 2 . . . . . . . . . . 14 Wheel . | . . . . . . . . . . . . . . . . . . . . . . . . . Hover . | . . . . . . . . . . . . . . . . . . . . . . . . . Flight 1 | . . . . . . 1 . . . . . . . . . . . . . . . . . . Utility 53 | 1 2 . . 1 2 4 2 2 . . 1 . 2 2 4 4 3 . 1 1 7 2 1 11 Device 28 | . 1 . . . . 2 2 1 . . 1 . . 1 1 2 3 . . . 3 2 1 8 Storage 7 | 1 1 . . . 1 . . . . . . . . . 1 . . . 1 . 1 . . 1 Processor 5 | . . . . . . . . . . . . . . 1 . 1 . . . 1 1 . . 1 Hackware 3 | . . . . . . 1 . . . . . . 1 . . . . . . . 1 . . . Protection 10 | . . . . 1 1 1 . 1 . . . . 1 . 2 1 . . . . 1 . . 1 Artifact . | . . . . . . . . . . . . . . . . . . . . . . . . . Weapon 62 | 2 . . . . 9 2 2 3 2 1 1 . 5 3 6 . 1 2 . . 8 . 1 14 Energy Gun 31 | . . . . . 2 2 2 2 2 1 1 . 2 2 3 . 1 1 . . 4 . . 6 Energy Cannon 8 | . . . . . 1 . . 1 . . . . 2 . . . . . . . 2 . . 2 Ballistic Gun 10 | 2 . . . . 3 . . . . . . . . . 3 . . . . . . . . 2 Ballistic Cannon 4 | . . . . . 2 . . . . . . . . . . . . . . . . . 1 1 Launcher 5 | . . . . . . . . . . . . . . 1 . . . . . . 1 . . 3 Special Weapon . | . . . . . . . . . . . . . . . . . . . . . . . . . Impact Weapon . | . . . . . . . . . . . . . . . . . . . . . . . . . Slashing Weapon 2 | . . . . . 1 . . . . . . . 1 . . . . . . . . . . . Piercing Weapon 2 | . . . . . . . . . . . . . . . . . . 1 . . 1 . . . Special Melee Weapon . | . . . . . . . . . . . . . . . . . . . . . . . . . Unidentified Prototypes 16 | . . . . . 2 1 . . . . . . . 1 4 . 1 1 3 . 2 . . 1 Corrupted Parts 18 | . . . . . . . . 4 . . . . . . 12 . . . . . . . . 2 System Corruption 110 | . . . . . . . . 20 . . . . . . 78 . . . . . . . . 12 Parts Lost 76 | . . . . 1 . . 4 . . 8 . . . . 1 . . . . . 15 . 3 44 Power 18 | . . . . . . . 2 . . 1 . . . . . . . . . . 3 . . 12 Propulsion 14 | . . . . . . . 1 . . 2 . . . . . . . . . . 3 . . 8 Utility 19 | . . . . 1 . . . . . 1 . . . . . . . . . . 4 . 2 11 Weapon 25 | . . . . . . . 1 . . 4 . . . . 1 . . . . . 5 . 1 13 Highest Loss Streak 9 | . . . . 1 . . 2 . . 4 . . . . 1 . . . . . 7 . 3 9 To Critical Strikes . | . . . . . . . . . . . . . . . . . . . . . . . . . Average Backups 18 | 4 7 9 10 10 16 19 18 18 18 17 14 16 18 20 22 22 23 23 22 23 21 19 20 21 Power 1 | . 1 1 1 . . . . . . . . . 2 2 2 5 5 5 5 4 3 3 3 1 Propulsion 4 | 1 2 2 2 4 3 3 4 3 3 2 . . 3 3 3 4 4 4 4 4 3 3 3 9 Utility 7 | . 3 5 5 4 7 8 8 9 9 8 10 11 10 11 10 8 8 8 8 8 7 5 4 2 Weapon 4 | . 1 1 2 2 5 6 4 5 6 5 4 4 3 4 6 5 5 6 5 5 4 7 8 7 Tool/Special . | . . . . . . . . . . . . . . . . . . . . . . . . . Unused Backups 45 | 2 1 . . . 5 5 3 1 5 . . . 5 . 2 . . . . . 5 . . 11 Power . | . . . . . . . . . . . . . . . . . . . . . . . . . Propulsion 13 | 2 . . . . 1 2 1 . . . . . 1 . 1 . . . . . . . . 5 Utility 18 | . 1 . . . 2 2 2 . 2 . . . 3 . 1 . . . . . 4 . . 1 Weapon 13 | . . . . . 2 1 . 1 3 . . . 1 . . . . . . . 1 . . 4 Tool/Special 1 | . . . . . . . . . . . . . . . . . . . . . . . . 1 Average Slot Usage (%) 87 | . 100 100 100 99 96 99 92 97 94 92 62 72 85 86 79 82 81 81 82 83 81 84 81 75 Engine 6 | . 14 14 14 14 4 6 3 12 15 12 6 12 13 7 1 . . . . . . . . . Reactor 5 | . . . . . . . . . . . . . . . 9 11 11 11 11 11 14 13 13 12 Treads 17 | . 28 28 28 28 3 . . 25 30 27 6 6 16 20 14 17 17 16 16 16 14 13 13 8 Leg 5 | . . . . . 30 30 29 4 . 1 19 20 3 . . . . . . . . . . 5 Device 11 | . 14 14 14 . . 6 14 14 15 14 17 20 9 6 6 12 10 10 10 11 11 16 16 15 Storage 7 | . 14 14 14 14 9 7 7 7 7 7 6 6 6 6 6 5 5 5 5 5 5 4 4 7 Processor 2 | . . . . . . . . . . . . . . . 6 1 5 5 5 5 5 4 4 5 Protection 4 | . . . . 13 8 4 . . . . . . 5 6 8 7 5 5 5 5 5 9 7 1 Energy Gun 12 | . . . . . 6 22 29 23 18 20 5 6 12 20 21 11 10 11 16 16 15 9 4 7 Energy Cannon 2 | . . . . . 5 7 . 5 5 6 . . 4 . . . . . . . . 9 9 3 Ballistic Gun 7 | . 28 28 28 28 18 . . . . . . . . . 2 11 11 10 5 8 5 . . . Peak Build Rating 196 | 6 8 8 10 10 42 52 53 50 50 49 51 57 74 78 131 148 148 145 149 154 170 164 167 196 Average Rating 90 | 5 7 8 8 9 33 48 45 47 46 44 49 56 69 73 102 145 143 143 145 151 158 163 157 163 On Entrance 76 | . 6 8 8 10 10 42 48 47 49 49 43 51 57 73 75 131 143 144 145 147 154 154 164 144 Naked Turns . | . . . . . . . . . . . . . . . . . . . . . . . . . Heaviest Build 215 | 10 26 26 26 28 70 76 75 86 80 80 57 59 95 99 158 159 159 159 159 162 186 199 202 215 Greatest Support 240 | 40 40 40 40 40 72 72 69 82 82 83 76 76 110 110 160 240 240 240 240 240 240 230 230 230 Greatest Overweight (x) 2 | . . . . . . 1 1 1 . 1 . . 2 . 1 . . . . . . . . 1 Average Overweight (x) . | . . . . . . . . . . . . . . . . . . . . . . . . . Largest Inventory Capacity 25 | 8 15 15 15 15 20 20 20 20 20 20 20 20 20 20 25 25 25 25 25 25 25 25 25 25 Average Capacity 21 | 7 10 15 15 15 18 20 20 20 20 20 20 20 20 20 24 25 25 25 25 25 25 25 25 23 Most Carried 25 | 6 9 10 12 12 20 20 20 20 20 20 17 20 20 20 25 25 25 25 25 25 25 22 24 25 Average Carried 19 | 4 7 9 10 10 17 19 19 19 19 18 15 18 19 20 23 24 24 24 24 24 22 20 21 22 Final Capacity 25 | 8 15 15 15 15 20 20 20 20 20 20 20 20 20 20 25 25 25 25 25 25 25 25 25 25 Final Carried 25 | 6 9 10 12 10 20 20 18 20 20 16 16 20 20 20 25 25 25 24 25 25 22 20 24 25 Class Distribution -------------------- 28% | Scavenger-Tank 19% | Mutant 12% | Skirmisher 10% | Scavenger-Skirmisher 9% | Generator-Tank 6% | Commander-Tank 4% | Tank Dominant Class ---------------- Mutant | -10/Materials Mutant | -10/Mines Mutant | -10/Exiles Mutant | -9/Mines Skirmisher | -8/Materials Skirmisher | -7/Factory Skirmisher | -7/Lower Caves Scavenger-Gunner | -7/Lower Caves Scavenger-Skirmisher | -7/Zion Scavenger-Skirmisher | -6/Proximity Caves Mutant | -6/Factory Mutant | -6/Waste Tank | -6/Factory Commander-Tank | -6/Extension Commander-Tank | -6/Cetus Scavenger-Tank | -5/Factory Scavenger-Tank | -5/Upper Caves Scavenger-Tank | -5/Upper Caves Scavenger-Tank | -5/Zhirov Scavenger-Tank | -4/Proximity Caves Scavenger-Tank | -4/Factory Scavenger-Tank | -3/Research Scavenger-Tank | -3/DSF Generator-Tank | -2/Research Resources | -11 -10 -10 -10 -9 -8 -7 -7 -7 -7 -6 -6 -6 -6 -6 -6 -5 -5 -5 -5 -4 -4 -3 -3 -2 ----------- Run | Yrd Mat Min Exi Min Mat Fac Low Low Zio Pro Fac Was Fac Ext Cet Fac Upp Upp Zhi Pro Fac Res DSF Res Matter Collected 5586 | 294 . 38 . 31 390 103 337 204 147 50 . 50 159 131 192 206 286 44 . 222 932 . 295 1475 Remotely . | . . . . . . . . . . . . . . . . . . . . . . . . . Salvage Created 11508 | 124 . 39 . 82 601 123 476 180 . 272 . . 57 351 310 143 287 73 . 459 2048 . 1045 4838 Parts 494 | 9 . 2 . 8 38 10 23 12 . 13 . . 5 13 10 13 9 6 . 22 51 . 31 219 Haulers Intercepted 4 | . . . . . 2 . . . . . . . . . . . . . . . 1 . . 1 Recyclers Shooed 7 | 1 . . . . . . . . . . . . 1 . . . . . . . 2 . . 3 Parts Field Recycled . | . . . . . . . . . . . . . . . . . . . . . . . . . Retrieved Matter . | . . . . . . . . . . . . . . . . . . . . . . . . . Parts Self-Destructed 97 | . . . . . . . 24 9 2 7 . . . . . . 18 19 . 18 . . . . Prevented 27 | . . . . . . . 7 2 . 6 . . . . . . . 1 . 11 . . . . Kills | -11 -10 -10 -10 -9 -8 -7 -7 -7 -7 -6 -6 -6 -6 -6 -6 -5 -5 -5 -5 -4 -4 -3 -3 -2 ------- Run | Yrd Mat Min Exi Min Mat Fac Low Low Zio Pro Fac Was Fac Ext Cet Fac Upp Upp Zhi Pro Fac Res DSF Res Combat Hostiles Destroyed 185 | . . 1 . 2 11 1 10 4 . 8 . . 1 7 4 2 5 3 . 9 31 . 13 73 Guns 105 | . . 1 . 2 9 1 8 3 . 5 . . 1 3 . 2 3 3 . 9 27 . . 28 Cannons 23 | . . . . . 1 . 1 1 . 1 . . . . . . . . . . . . 4 15 AOE 35 | . . . . . 1 . . . . 2 . . . 4 . . 2 . . . . . 6 20 Classes Destroyed 21 | 2 . 1 . 1 4 1 2 2 . 1 . . 1 . . 2 . . . 1 . . 2 1 Worker 7 | . . . . . . . . . . . . . . . . . . . . . . . . 7 Builder 10 | . . . . . . . . . . . . . . . . 2 . . . . 1 . . 7 Tunneler 7 | 3 . . . . . . . . . . . . . . . . . . . . . . . 4 Hauler 4 | . . . . . 2 . . . . . . . . . . . . . . . 1 . . 1 Recycler 4 | 1 . . . . . . . . . . . . . . . . . . . . . . . 3 Mechanic 2 | . . . . . . . . . . . . . . . . 1 . . . . . . . 1 Operator 1 | . . . . . . 1 . . . . . . . . . . . . . . . . . . Drone 3 | . . . . . . . . . . 1 . . . . . . . . . 2 . . . . Watcher 4 | . . . . . 1 1 . . . . . . . . . . . . . . . . . 2 Swarmer 51 | . . . . . 3 . 3 2 . 5 . . . . . . 1 3 . 3 5 . 5 21 Cutter 2 | . . . . . . . . . . . . . . . . . . . . . . . 2 . Grunt 50 | . . 1 . 1 2 . 5 . . 2 . . . 6 . . . . . 2 10 . 3 18 Brawler 5 | . . . . 1 . . . . . . . . . . . . 1 . . . 2 . . 1 Duelist 5 | . . . . . . . 1 . . . . . . 1 . . . . . . 3 . . . Sentry 15 | . . . . . 6 1 . . . . . . . . . . 2 . . 1 2 . . 3 Demolisher 1 | . . . . . . . . . . . . . 1 . . . . . . . . . . . Specialist 5 | . . . . . . . . . . . . . . . . . . . . . . . 3 2 Hunter 14 | . . . . . . . . 1 . . . . . . . 2 1 . . . . . . 10 Programmer 27 | . . . . . . . 1 . . . . . . . . . . . . . 9 . . 17 Behemoth 2 | . . . . . . . . . . . . . . . . . . . . 1 . . . 1 Cetus Guard 4 | . . . . . . . . . . . . . . . 4 . . . . . . . . . Savage 1 | . . . . . . . . . . . . . . . . . 1 . . . . . . . Mutant 1 | . . . . . . . . 1 . . . . . . . . . . . . . . . . Best Kill Streak 14 | 3 . 1 . 2 3 1 3 2 . 5 . . 1 3 2 2 3 3 . 4 4 . 10 14 Combat Bots Only 10 | . . 1 . 2 3 1 3 2 . 5 . . 1 3 2 1 3 3 . 4 4 . 10 7 Max Kills in Single Turn 5 | 1 . 1 . 1 2 1 2 1 . 2 . . 1 2 1 1 2 2 . 2 2 . 5 4 Gunslinging 1 | . . . . . 1 . 1 . . . . . . . . . . 1 . 1 1 . . . Exploded 4 | . . . . . 1 . . . . 2 . . . 2 . . 2 . . . . . 3 4 Melee . | . . . . . . . . . . . . . . . . . . . . . . . . . Uniques/NPCs Destroyed . | . . . . . . . . . . . . . . . . . . . . . . . . . Combat | -11 -10 -10 -10 -9 -8 -7 -7 -7 -7 -6 -6 -6 -6 -6 -6 -5 -5 -5 -5 -4 -4 -3 -3 -2 -------- Run | Yrd Mat Min Exi Min Mat Fac Low Low Zio Pro Fac Was Fac Ext Cet Fac Upp Upp Zhi Pro Fac Res DSF Res Hostile Shots Fired 1918 | . . 4 . 23 72 18 92 20 . 107 . . 9 52 32 35 60 24 . 43 249 . 111 967 Missed 568 | . . . . 4 20 7 24 3 . 28 . . 3 17 9 8 17 7 . 11 54 . 61 295 Deflected 27 | . . . . . . . . . . . . . . . . . . . . . . . . 27 Hits 1350 | . . 4 . 19 52 11 68 17 . 79 . . 6 35 23 27 43 17 . 32 195 . 50 672 Melee 39 | . . . . 6 . . . . . 1 . . . . . . . . . . 20 . 1 11 Projectile 1311 | . . 4 . 13 52 11 68 17 . 78 . . 6 35 23 27 43 17 . 32 175 . 49 661 AOE 17 | . . . . . . . . . . . . . . . . . . . . . . . 2 15 Critical Strikes 56 | . . . . 2 2 . 1 2 . 1 . . . . 5 1 1 . . 2 12 . 1 26 Actively Blocked 1 | . . . . . . . . . . . . . . . . . . . . . . . . 1 Part Disruptions 2 | . . . . . . . . . . . . . 1 . . . . . . . 1 . . . Damage Taken 25316 | . . 46 . 292 627 94 1029 272 . 1307 . . 60 525 579 500 409 121 . 592 4047 . 665 14151 Core 2294 | . . 11 . 52 88 18 148 33 . 105 . . . 75 63 13 23 . . 55 99 . 26 1485 Absorbed by Shields 5446 | . . . . . . . . . . . . . . 69 114 204 400 129 . 266 902 . 363 2999 Reduced by Siege Mode 615 | . . . . . . . . . . . . . . . . . . . . . 121 . . 494 Redirected to Shielding 112 | . . . . . 29 . . . . . . . . . . . . . . . . . 10 73 Ignored by Resistances 717 | . . . . . . . . . . . . . . . . 59 . . . . 31 . 178 449 Regen/Repaired (Parts) 782 | . . . . . . . . . . . . 214 223 94 154 17 . . . . 80 . . . Core Remaining (%) 83 | 100 . . . 74 84 . . . . 56 . . . . 83 . . . . 90 82 . 98 . Volleys Fired 530 | 17 6 3 . 13 38 5 27 12 . 23 . . 1 18 15 16 16 3 . 17 85 . 15 200 Largest 5 | 2 2 2 . 2 4 4 4 4 . 4 . . 3 3 4 4 4 4 . 5 5 . 5 4 Hottest 790 | 40 40 40 . 40 162 242 242 236 . 249 . . 195 195 240 230 230 230 . 295 790 . 391 361 Shots Fired 1418 | 34 12 6 . 26 131 20 82 39 . 66 . . 4 43 41 42 45 12 . 69 262 . 46 438 Gun 1135 | 34 12 6 . 26 116 15 76 34 . 51 . . 4 37 41 42 42 12 . 69 252 . 6 260 Cannon 225 | . . . . . 15 5 6 5 . 15 . . . . . . . . . . 6 . 31 142 Launcher 58 | . . . . . . . . . . . . . . 6 . . 3 . . . 4 . 9 36 Special . | . . . . . . . . . . . . . . . . . . . . . . . . . Kinetic 438 | 34 12 6 . 26 99 . . . . . . . . . 1 32 26 6 . 18 85 . 9 84 Thermal 561 | . . . . . 7 10 54 23 . 32 . . 1 10 2 10 16 6 . 34 157 . 6 193 Explosive 40 | . . . . . . . . . . . . . . 6 . . 3 . . . . . . 31 Electromagnetic 379 | . . . . . 25 10 28 16 . 34 . . 3 27 38 . . . . 17 20 . 31 130 Robot Hit Streak 18 | 5 1 2 . 8 15 3 9 18 . 4 . . 5 8 8 11 5 2 . 13 14 . 7 18 Robot Miss Streak 14 | 3 9 3 . 2 7 3 6 5 . 14 . . 1 3 5 5 6 6 . 7 5 . 3 14 Penetration Max 1 | . . . . . . . . . . . . . . . 1 1 1 . . 1 1 . . 1 Secondary Targets 23 | . . . . . 4 . 1 . . . . . 1 . . . . 2 . 1 9 . . 5 Max Gunslinging Chain 1 | . . . . . 1 . 1 . . . . . 1 . . . . 1 . 1 1 . . 1 Shots Hit Robots 825 | 23 1 3 . 20 75 7 49 24 . 25 . . 3 26 20 23 25 3 . 44 159 . 27 268 Core Hits 464 | 9 1 2 . 5 30 4 24 9 . 14 . . 3 27 9 7 18 3 . 18 69 . 18 194 Critical Kills 11 | . . . . . . . . . . . . . . . . 2 3 . . 2 2 . . 2 Critical Parts Destroyed 14 | . . . . . . . . . . . . . . . . 4 2 . . . 8 . . . Critical Strikes 35 | . . . . . . . 2 . . . . . . 1 . 6 6 . . 2 11 . . 7 Burn 4 | . . . . . . . 2 . . . . . . 1 . . . . . . 1 . . . Meltdown 2 | . . . . . . . . . . . . . . . . . . . . . . . . 2 Destroy 24 | . . . . . . . . . . . . . . . . 6 6 . . 2 10 . . . Blast 3 | . . . . . . . . . . . . . . . . . . . . . . . . 3 Corrupt 2 | . . . . . . . . . . . . . . . . . . . . . . . . 2 Melee Attacks 43 | . . . . . 2 . . . . . . . 2 . . . . 1 . . 20 . . 18 Impact . | . . . . . . . . . . . . . . . . . . . . . . . . . Slashing 4 | . . . . . 2 . . . . . . . 2 . . . . . . . . . . . Piercing 39 | . . . . . . . . . . . . . . . . . . 1 . . 20 . . 18 Sneak Attacks . | . . . . . . . . . . . . . . . . . . . . . . . . . Combat Hostiles . | . . . . . . . . . . . . . . . . . . . . . . . . . Follow-up Attacks . | . . . . . . . . . . . . . . . . . . . . . . . . . Damage Inflicted 31199 | 187 8 28 . 159 1188 224 941 428 . 791 . . 59 1642 557 638 870 98 . 1367 5936 . 1736 14342 Guns 16912 | 187 8 28 . 159 847 76 790 368 . 390 . . 59 555 557 621 598 98 . 1367 4859 . 68 5277 Cannons 4970 | . . . . . 273 94 151 27 . 131 . . . . . . . . . . 115 . 689 3490 Explosions 9038 | . . . . . 68 54 . 33 . 270 . . . 1087 . . 272 . . . 962 . 979 5313 Melee 197 | . . . . . . . . . . . . . . . . . . . . . . . . 197 Ramming 82 | . . . . . . . . . . . . . . . . 17 . . . . . . . 65 Kinetic 6109 | 187 8 28 . 159 601 . . . . . . . . . 65 473 343 . . 477 1680 . 182 1906 Thermal 12127 | . . . . . 128 110 638 322 . 518 . . 21 636 . 148 255 98 . 608 3492 . 562 4591 Explosive 5940 | . . . . . . . . . . . . . . 611 . . 272 . . . . . . 5057 Electromagnetic 6744 | . . . . . 459 114 303 106 . 273 . . 38 395 492 . . . . 282 764 . 992 2526 Impact . | . . . . . . . . . . . . . . . . . . . . . . . . . Slashing . | . . . . . . . . . . . . . . . . . . . . . . . . . Piercing 197 | . . . . . . . . . . . . . . . . . . . . . . . . 197 Highest Corruption 80 | . . . . 2 . . 1 21 21 . . . 2 2 80 . . . . . 26 . . 39 Average Corruption 12 | . . . . 2 . . 1 17 21 . . . 2 2 29 . . . . . 15 . . 19 Corruption Purged . | . . . . . . . . . . . . . . . . . . . . . . . . . Corruption Blocked . | . . . . . . . . . . . . . . . . . . . . . . . . . Effects 314 | . . . . 10 . . 4 41 5 . . . 12 13 19 . . . . . 100 . . 110 Message Errors 73 | . . . . 2 . . . 15 2 . . . 3 5 . . . . . . 21 . . 25 Matter Fused 67 | . . . . 4 . . 1 10 1 . . . 2 1 7 . . . . . 24 . . 17 Heat Flow Errors 33 | . . . . . . . 2 3 . . . . 1 2 5 . . . . . 8 . . 12 Energy Discharges 29 | . . . . 1 . . . 2 . . . . 1 1 . . . . . . 12 . . 12 Parts Rejected 2 | . . . . . . . . . . . . . . . . . . . . . 1 . . 1 Parts Fused 2 | . . . . . . . . . . . . . 1 . . . . . . . 1 . . . Data Loss (minor) 44 | . . . . 2 . . . 8 1 . . . 2 2 5 . . . . . 15 . . 9 Data Loss (major) 14 | . . . . . . . . 1 . . . . 1 2 1 . . . . . 4 . . 5 Misfires 9 | . . . . . . . . 1 . . . . 1 . . . . . . . 4 . . 3 Alerts 6 | . . . . 1 . . 1 . 1 . . . . . . . . . . . 1 . . 2 Misdirections 4 | . . . . . . . . . . . . . . . . . . . . . . . . 4 Weapon Failures 31 | . . . . . . . . 1 . . . . . . 1 . . . . . 9 . . 20 Overload Shots 5 | . . . . . . . . . . . . . . . 2 . . . . . 3 . . . Overflow Damage 371 | . . . . . 7 . . . . 27 . . . . . . 10 . . . 27 . 22 278 Projectiles 124 | . . . . . 7 . . . . . . . . . . . . . . . . . . 117 Explosions 247 | . . . . . . . . . . 27 . . . . . . 10 . . . 27 . 22 161 Melee . | . . . . . . . . . . . . . . . . . . . . . . . . . Knockbacks 9 | . . . . . . . . . . . . . . . . . . . . . . . 2 7 Impact . | . . . . . . . . . . . . . . . . . . . . . . . . . Kinetic 9 | . . . . . . . . . . . . . . . . . . . . . . . 2 7 Secondary . | . . . . . . . . . . . . . . . . . . . . . . . . . Self-Inflicted Damage 671 | . . . . . . . . 11 . 43 . . . 73 . . . . . . 75 . 151 318 Shots 15 | . . . . . . . . 1 . 1 . . . 2 . . . . . . 1 . 3 7 Rammed 2 | . . . . . . . . . . . . . . . . 1 . . . . . . . 1 Targets Rammed 4 | . . . . . . . . . . . . . . . . 1 . . . . . . . 3 Kicked 2 | . . . . . . . . . . . . . . . . . . . . . . . . 2 Crushed . | . . . . . . . . . . . . . . . . . . . . . . . . . Highest Temperature 478 | . . 6 . 37 387 260 424 210 . 229 . . 133 258 357 234 376 330 . 448 478 . 358 458 Average Temperature 121 | . . 6 . 15 109 100 118 73 . 70 . . 56 84 159 101 127 105 . 133 125 . 146 134 Received Heat Transfer 3070 | . . 24 . 78 213 30 333 120 . 174 . . 18 146 49 . 25 . . 42 550 . 38 1230 Effects 28 | . . . . . 2 . . . . 1 . . . . 2 . 3 . . . 5 . 2 13 Shutdowns 7 | . . . . . . . . . . . . . . . . . . . . . 3 . . 4 Energy Bleed 6 | . . . . . . . . . . 1 . . . . 1 . 2 . . . . . . 2 Interference 8 | . . . . . 2 . . . . . . . . . 1 . 1 . . . 1 . . 3 Matter Decay 2 | . . . . . . . . . . . . . . . . . . . . . 1 . 1 . Short Circuit 1 | . . . . . . . . . . . . . . . . . . . . . . . 1 . Damage (minor) 1 | . . . . . . . . . . . . . . . . . . . . . . . . 1 Damage (major) 3 | . . . . . . . . . . . . . . . . . . . . . . . . 3 Siege Activations 12 | . . . . . . . . . . . . . . . . . . . . . 2 . . 10 Total Turns 246 | . . . . . . . . . . . . . . . . . . . . . 32 . . 214 Longest Duration 51 | . . . . . . . . . . . . . . . . . . . . . 20 . . 51 Martial Activations . | . . . . . . . . . . . . . . . . . . . . . . . . . Shielding Activations 2 | . . . . . . . . . . . . . . . . . . . . . . . . 2 Total Turns 92 | . . . . . . . . . . . . . . . . . . . . . . . . 92 Longest Duration 53 | . . . . . . . . . . . . . . . . . . . . . . . . 53 Robots Disrupted 1 | . . . . . . . 1 . . . . . . . . . . . . . . . . . Combat Hostiles 1 | . . . . . . . 1 . . . . . . . . . . . . . . . . . Robots Corrupted 19 | . . . . . . 1 1 . . . . . . . 4 . . . . . 4 . 3 6 Combat Hostiles 18 | . . . . . . . 1 . . . . . . . 4 . . . . . 4 . 3 6 Parts Fried 32 | . . . . . 1 3 1 . . 1 . . . . 5 . . 1 . . 7 . 5 8 Impact Corruptions . | . . . . . . . . . . . . . . . . . . . . . . . . . Robots Melted 2 | . . . . . . . . . . . . . . . . . . . . . . . . 2 Combat Hostiles 2 | . . . . . . . . . . . . . . . . . . . . . . . . 2 Parts Melted 22 | . . . . . . . 2 1 . . . . . . . . . . . . 8 . . 11 Heat Transferred 14817 | . . . . . 211 111 1406 605 . 607 . . 50 950 . 185 333 111 . 740 4031 . 611 4866 Parts Sabotaged 11 | . . . . . . . . . . 3 . . . . . . . . . . . . . 8 Parts Stolen . | . . . . . . . . . . . . . . . . . . . . . . . . . Parts Stripped . | . . . . . . . . . . . . . . . . . . . . . . . . . Power Chain Reactions 20 | . . . . . 1 1 . 1 . 2 . . . 2 . . . . . . . . 13 . Alert | -11 -10 -10 -10 -9 -8 -7 -7 -7 -7 -6 -6 -6 -6 -6 -6 -5 -5 -5 -5 -4 -4 -3 -3 -2 ------- Run | Yrd Mat Min Exi Min Mat Fac Low Low Zio Pro Fac Was Fac Ext Cet Fac Upp Upp Zhi Pro Fac Res DSF Res Maximum Alert Level 5 | . . . . . . . . . . . 3 1 1 4 3 3 . . . . 2 1 2 5 Low Security (%) 36 | 100 100 100 . 100 100 100 . . . . . . 47 7 . . . . . . 2 . . . Level 1 22 | . . . . . . . . . . . . 100 52 18 . . . . . . 55 100 69 3 Level 2 14 | . . . . . . . . . . . . . . 25 8 36 . . . . 41 . 30 7 Level 3 20 | . . . . . . . . . . . 100 . . 41 91 63 . . . . . . . 55 Level 4 2 | . . . . . . . . . . . . . . 6 . . . . . . . . . 13 Level 5 1 | . . . . . . . . . . . . . . . . . . . . . . . . 9 High Security 2 | . . . . . . . . . . . . . . . . . . . . . . . . 10 Max Security . | . . . . . . . . . . . . . . . . . . . . . . . . . Sterilizations 1 | . . . . . . . . . . . . . . . . . . . . . . . 1 . Peak Influence 2601 | 10 5 20 . 58 110 30 . . . . 900 294 338 1212 980 1036 . . . . 615 320 683 2601 Initial 900 | . 3 . . . . . . . . . 900 294 149 127 670 501 . . . . 450 320 202 384 Average 433 | 1 . . . 7 36 1 . . . . 872 255 183 617 824 754 . . . . 365 295 372 1109 Influence Increases 12022 | 20 5 20 . 108 399 50 240 95 . 180 900 . 683 1547 520 1019 277 240 . 161 1456 . 511 3591 Destroy 0b10 Robot/C 5120 | . . 20 . 80 260 20 200 60 . 140 . . 240 620 220 380 220 180 . 140 620 . 260 1460 Destroy 0b10 Robot/NC 270 | 20 . . . . 20 10 . . . 5 . . . 30 10 30 . . . 10 10 . . 125 Destroy Leader 854 | . . . . 20 78 12 40 20 . 20 . . 70 64 10 72 10 20 . 10 102 . 40 266 Allied During Kill 1823 | . . . . 8 6 . . . . . . . 310 712 240 459 47 40 . 1 . . . . Successful Hack 105 | . 5 . . . 17 6 . . . . . . 5 10 . 14 . . . . 24 . . 24 Disable Machine 285 | . . . . . . . . . . . . . 15 15 15 30 . . . . 90 . 15 105 Anti-Garrison Action 150 | . . . . . . . . . . . . . . . . . . . . . . . . 150 Destroy Structure 1210 | . . . . . 3 2 . . . . . . 28 96 25 34 . . . . 160 . 106 756 Advance Influence 1350 | . . . . . . . . . . . 900 . . . . . . . . . 450 . . . Partial Spotted 15 | . . . . . . . . . . . . . 15 . . . . . . . . . . . Lose Combat Pursuer 840 | . . . . . 15 . . 15 . 15 . . . . . . . . . . . . 90 705 Influence Decreases 9421 | 15 10 20 . 108 399 50 230 100 5 180 60 626 637 609 822 895 648 474 415 161 845 341 98 1673 Entered New Map 3251 | . 2 . . . . . . 2 5 . . 546 65 133 528 395 378 124 415 . . 291 68 299 Time Decay 4561 | 15 8 20 . 108 351 50 204 98 . 155 60 80 452 356 214 270 230 350 . 161 695 50 . 634 Search Patrol Dispatched 300 | . . . . . . . . . . . . . . . . . . . . . . . . 300 Lost Part 681 | . . . . . . . 26 . . 25 . . . . 10 . . . . . 150 . 30 440 Lost Ally 628 | . . . . . 48 . . . . . . . 120 120 70 230 40 . . . . . . . Squads Dispatched 51 | . . . . . 3 1 . . . 1 . . 1 1 1 3 . . . . 10 . 3 27 Investigation 5 | . . . . . . . . . . . . . . . 1 . . . . . 2 . . 2 Extermination 13 | . . . . . . . . . . . . . 1 . . 1 . . . . 6 . . 5 Reinforcement 14 | . . . . . 1 1 . . . . . . . 1 . 2 . . . . . . 3 6 Assault 15 | . . . . . . . . . . 1 . . . . . . . . . . 2 . . 12 Garrison 4 | . . . . . 2 . . . . . . . . . . . . . . . . . . 2 Intercept . | . . . . . . . . . . . . . . . . . . . . . . . . . Searches Triggered 2 | . . . . . . . . . . . . . . . . . . . . . . . . 2 Construction Impeded 5 | . . . . . . 1 . . . . . . . 1 . . . . . . . . . 3 Haulers Reinforced . | . . . . . . . . . . . . . . . . . . . . . . . . . Active Scanning Responses . | . . . . . . . . . . . . . . . . . . . . . . . . . Cargo Convoy Interrupts . | . . . . . . . . . . . . . . . . . . . . . . . . . Stealth | -11 -10 -10 -10 -9 -8 -7 -7 -7 -7 -6 -6 -6 -6 -6 -6 -5 -5 -5 -5 -4 -4 -3 -3 -2 --------- Run | Yrd Mat Min Exi Min Mat Fac Low Low Zio Pro Fac Was Fac Ext Cet Fac Upp Upp Zhi Pro Fac Res DSF Res Distress Signals 16 | . . . . . 2 . . . . 1 . . . 1 1 . . . . 1 3 . . 7 Communications Jammed . | . . . . . . . . . . . . . . . . . . . . . . . . . Distress Signals . | . . . . . . . . . . . . . . . . . . . . . . . . . Times Spotted 385 | . 2 1 . 4 21 3 13 5 . 27 . . 6 23 13 11 11 8 . 11 47 . 18 161 Peak Tracking Total 20 | . 1 . . 2 4 1 4 2 . 14 . . 2 5 5 3 9 5 . 4 5 . 7 20 Tactical Retreats 20 | . . . . . 1 . . 1 . 1 . . . . . . . . . . . . 4 13 Traps | -11 -10 -10 -10 -9 -8 -7 -7 -7 -7 -6 -6 -6 -6 -6 -6 -5 -5 -5 -5 -4 -4 -3 -3 -2 ------- Run | Yrd Mat Min Exi Min Mat Fac Low Low Zio Pro Fac Was Fac Ext Cet Fac Upp Upp Zhi Pro Fac Res DSF Res Traps Triggered 11 | . . . . . . . . . . . 1 . 1 . . 1 . . . . 5 . 1 2 Indirectly 1 | . . . . . . . . . . . . . . . . . . . . . . . . 1 Trap Hack Attempts . | . . . . . . . . . . . . . . . . . . . . . . . . . Triggered . | . . . . . . . . . . . . . . . . . . . . . . . . . Disarmed . | . . . . . . . . . . . . . . . . . . . . . . . . . Reprogrammed . | . . . . . . . . . . . . . . . . . . . . . . . . . Reused . | . . . . . . . . . . . . . . . . . . . . . . . . . Traps Extracted . | . . . . . . . . . . . . . . . . . . . . . . . . . Installed . | . . . . . . . . . . . . . . . . . . . . . . . . . Triggered . | . . . . . . . . . . . . . . . . . . . . . . . . . Machines | -11 -10 -10 -10 -9 -8 -7 -7 -7 -7 -6 -6 -6 -6 -6 -6 -5 -5 -5 -5 -4 -4 -3 -3 -2 ---------- Run | Yrd Mat Min Exi Min Mat Fac Low Low Zio Pro Fac Was Fac Ext Cet Fac Upp Upp Zhi Pro Fac Res DSF Res Machines Disabled 22 | . . . . . . . . 1 . . . . 1 1 1 2 1 . . . 6 . 1 8 Max in Single Turn 1 | . . . . . . . . 1 . . . . 1 1 1 . 1 . . . 1 . 1 1 Garrison Access 4 | . . . . . 1 . . . . . . . 1 . . . . . . . 1 . . 1 Energy Cycler 2 | . . . . . . . . . . . . . . 2 . . . . . . . . . . Machines Repaired . | . . . . . . . . . . . . . . . . . . . . . . . . . Machines Dismantled . | . . . . . . . . . . . . . . . . . . . . . . . . . Machines Sabotaged . | . . . . . . . . . . . . . . . . . . . . . . . . . Overloaded Fab Kills . | . . . . . . . . . . . . . . . . . . . . . . . . . Hacking | -11 -10 -10 -10 -9 -8 -7 -7 -7 -7 -6 -6 -6 -6 -6 -6 -5 -5 -5 -5 -4 -4 -3 -3 -2 --------- Run | Yrd Mat Min Exi Min Mat Fac Low Low Zio Pro Fac Was Fac Ext Cet Fac Upp Upp Zhi Pro Fac Res DSF Res Machines Accessed 48 | . 1 . 2 . 4 3 2 1 1 . . . 4 2 1 2 . . 4 . 13 1 . 7 Terminals 24 | . 1 . . . 2 2 . 1 . . . . 2 2 1 1 . . . . 8 1 . 3 Fabricators 2 | . . . . . . . . . . . . . . . . . . . . . 1 . . 1 Repair Stations 2 | . . . . . 1 . . . . . . . . . . . . . . . 1 . . . Recycling Units 4 | . . . . . . 1 . . . . . . . . . . . . . . 2 . . 1 Scanalyzers . | . . . . . . . . . . . . . . . . . . . . . . . . . Garrison Access 7 | . . . . . 1 . . . . . . . 2 . . 1 . . . . 1 . . 2 Total Hacks 105 | . 3 . 2 . 9 6 4 1 4 . . . 9 5 3 5 . . 17 . 24 1 . 12 Successful 50 | . 1 . 2 . 4 2 4 1 4 . . . 5 2 . 1 . . 17 . 5 1 . 1 Failed 55 | . 2 . . . 5 4 . . . . . . 4 3 3 4 . . . . 19 . . 11 Catastrophic 11 | . . . . . 1 . . . . . . . . . 1 1 . . . . 4 . . 4 Database Lockouts . | . . . . . . . . . . . . . . . . . . . . . . . . . Manual 18 | . 2 . 1 . 4 . . . . . . . 2 . 1 2 . . . . 6 . . . Terminals 49 | . 3 . . . 6 3 . 1 . . . . 5 5 3 2 . . . . 15 1 . 5 Fabricators 3 | . . . . . . . . . . . . . . . . . . . . . 1 . . 2 Repair Stations 3 | . . . . . 2 . . . . . . . . . . . . . . . 1 . . . Recycling Units 9 | . . . . . . 3 . . . . . . . . . . . . . . 5 . . 1 Scanalyzers . | . . . . . . . . . . . . . . . . . . . . . . . . . Garrison Access 14 | . . . . . 1 . . . . . . . 4 . . 3 . . . . 2 . . 4 Terminal Hacks 38 | . . . 2 . 1 1 4 1 4 . . . 3 2 . . . . 17 . 1 1 . 1 Record 11 | . . . 1 . . . 3 1 . . . . . . . . . . 5 . . . . 1 Part Schematic 8 | . . . . . . . . . 4 . . . . . . . . . 4 . . . . . Robot Analysis 4 | . . . . . . . . . . . . . . . . . . . 4 . . . . . Prototype ID Bank 5 | . . . . . . . . . . . . . 1 . . . . . 4 . . . . . Open Door 3 | . . . . . . . 1 . . . . . . 2 . . . . . . . . . . Open DSF 1 | . . . . . . . . . . . . . . . . . . . . . . 1 . . Branch Access Points 2 | . . . . . . 1 . . . . . . 1 . . . . . . . . . . . Alert Level 1 | . . . . . . . . . . . . . 1 . . . . . . . . . . . Locate Traps 1 | . . . . . 1 . . . . . . . . . . . . . . . . . . . Zone Layout 1 | . . . . . . . . . . . . . . . . . . . . . 1 . . . Proto ID Catalog 1 | . . . 1 . . . . . . . . . . . . . . . . . . . . . Fabricator Hacks . | . . . . . . . . . . . . . . . . . . . . . . . . . Repair Station Hacks 1 | . . . . . 1 . . . . . . . . . . . . . . . . . . . Scan Component 1 | . . . . . 1 . . . . . . . . . . . . . . . . . . . Recycling Unit Hacks 3 | . . . . . . 1 . . . . . . . . . . . . . . 2 . . . Report Inventory 2 | . . . . . . 1 . . . . . . . . . . . . . . 1 . . . Retrieve Matter 1 | . . . . . . . . . . . . . . . . . . . . . 1 . . . Scanalyzer . | . . . . . . . . . . . . . . . . . . . . . . . . . Garrison Access Hacks 3 | . . . . . 1 . . . . . . . 1 . . . . . . . 1 . . . Seal Access 3 | . . . . . 1 . . . . . . . 1 . . . . . . . 1 . . . Unauthorized Hacks 5 | . 1 . . . 1 . . . . . . . 1 . . 1 . . . . 1 . . . Terminals 4 | . 1 . . . 1 . . . . . . . 1 . . 1 . . . . . . . . Botnet 4 | . 1 . . . 1 . . . . . . . 1 . . 1 . . . . . . . . Fabricators . | . . . . . . . . . . . . . . . . . . . . . . . . . Repair Stations 1 | . . . . . . . . . . . . . . . . . . . . . 1 . . . Patch 1 | . . . . . . . . . . . . . . . . . . . . . 1 . . . Recycling Units . | . . . . . . . . . . . . . . . . . . . . . . . . . Scanalyzers . | . . . . . . . . . . . . . . . . . . . . . . . . . Garrison Access . | . . . . . . . . . . . . . . . . . . . . . . . . . Data Cores Recovered . | . . . . . . . . . . . . . . . . . . . . . . . . . Used . | . . . . . . . . . . . . . . . . . . . . . . . . . Hacking Detections 34 | . 1 . . . 3 2 . . . . . . 3 2 2 2 . . . . 12 . . 7 Full Trace Events 3 | . . . . . . . . . . . . . . . 1 . . . . . 1 . . 1 Feedback Events . | . . . . . . . . . . . . . . . . . . . . . . . . . Feedback Blocked . | . . . . . . . . . . . . . . . . . . . . . . . . . Robot Schematics Acquired 3 | . . . . . . . . . 3 . . . . . . . . . . . . . . . Robots Built . | . . . . . . . . . . . . . . . . . . . . . . . . . Authchips . | . . . . . . . . . . . . . . . . . . . . . . . . . Time . | . . . . . . . . . . . . . . . . . . . . . . . . . Total Robot Build Rating . | . . . . . . . . . . . . . . . . . . . . . . . . . Part Schematics Acquired 23 | . . . . . . . . . 19 . . . . . . . . . 4 . . . . . Parts Built . | . . . . . . . . . . . . . . . . . . . . . . . . . Authchips . | . . . . . . . . . . . . . . . . . . . . . . . . . Time . | . . . . . . . . . . . . . . . . . . . . . . . . . Total Part Build Rating . | . . . . . . . . . . . . . . . . . . . . . . . . . Parts Repaired . | . . . . . . . . . . . . . . . . . . . . . . . . . Time . | . . . . . . . . . . . . . . . . . . . . . . . . . Parts Recycled . | . . . . . . . . . . . . . . . . . . . . . . . . . Recycled Matter . | . . . . . . . . . . . . . . . . . . . . . . . . . Retrieved Matter . | . . . . . . . . . . . . . . . . . . . . . . . . . Retrieved Components . | . . . . . . . . . . . . . . . . . . . . . . . . . Parts Scanalyzed . | . . . . . . . . . . . . . . . . . . . . . . . . . Part Schematics Acquired . | . . . . . . . . . . . . . . . . . . . . . . . . . Parts Damaged . | . . . . . . . . . . . . . . . . . . . . . . . . . Bothacking | -11 -10 -10 -10 -9 -8 -7 -7 -7 -7 -6 -6 -6 -6 -6 -6 -5 -5 -5 -5 -4 -4 -3 -3 -2 ------------ Run | Yrd Mat Min Exi Min Mat Fac Low Low Zio Pro Fac Was Fac Ext Cet Fac Upp Upp Zhi Pro Fac Res DSF Res Used RIF Installer . | . . . . . . . . . . . . . . . . . . . . . . . . . Robots Hacked . | . . . . . . . . . . . . . . . . . . . . . . . . . Non-combat . | . . . . . . . . . . . . . . . . . . . . . . . . . Combat . | . . . . . . . . . . . . . . . . . . . . . . . . . Robot Hacks Applied . | . . . . . . . . . . . . . . . . . . . . . . . . . Relay Couplers Released 1 | . . . . . . . . . . . . . . . . . . . . . . . . 1 Machine Destruction 1 | . . . . . . . . . . . . . . . . . . . . . . . . 1 Fabnet Peak Effective % . | . . . . . . . . . . . . . . . . . . . . . . . . . Robots Rewired 12 | . . . . . . . . . . . . . . 10 . . 2 . . . . . . . Allies Hacked . | . . . . . . . . . . . . . . . . . . . . . . . . . Hacks Repelled . | . . . . . . . . . . . . . . . . . . . . . . . . . Allies | -11 -10 -10 -10 -9 -8 -7 -7 -7 -7 -6 -6 -6 -6 -6 -6 -5 -5 -5 -5 -4 -4 -3 -3 -2 -------- Run | Yrd Mat Min Exi Min Mat Fac Low Low Zio Pro Fac Was Fac Ext Cet Fac Upp Upp Zhi Pro Fac Res DSF Res Total Allies 46 | . . . . 3 . . . . . . . 20 . 16 5 . 2 . . . . . . . Largest Group 25 | . . . . 3 3 . . . . . . 20 20 25 22 22 3 2 2 2 . . . . Highest-Rated Group 1170 | . . . . 40 40 . . . . . . 718 718 983 1170 1170 206 79 79 79 . . . . Highest-Rated Ally 159 | . . . . 16 16 . . . . . . 50 50 159 153 153 96 49 49 49 . . . . Initial Warlord ECA Mod 9 | . . . . . . . . . . . . . . . . . . . . . . . . 9 Total Orders . | . . . . . . . . . . . . . . . . . . . . . . . . . Ally Attacks 536 | . . . . 15 35 . . . . . . . 88 176 85 102 14 17 . 4 . . . . Total Damage 13427 | . . . . 182 295 . . . . . . . 1382 5185 2397 3070 459 431 . 26 . . . . Kills 90 | . . . . 2 3 . . . . . . . 11 30 10 22 6 6 . . . . . . Allies Corrupted 2 | . . . . . . . . . . . . . 2 . . . . . . . . . . . Allies Melted 1 | . . . . . . . . . . . . . . 1 . . . . . . . . . . Intel | -11 -10 -10 -10 -9 -8 -7 -7 -7 -7 -6 -6 -6 -6 -6 -6 -5 -5 -5 -5 -4 -4 -3 -3 -2 ------- Run | Yrd Mat Min Exi Min Mat Fac Low Low Zio Pro Fac Was Fac Ext Cet Fac Upp Upp Zhi Pro Fac Res DSF Res Active Infowar (turns) 7627 | . 334 839 569 15 . . 442 410 1748 409 129 171 67 83 442 223 450 771 263 262 . . . . Optics 748 | . . . . . . . . . . . . . . 83 442 223 . . . . . . . . Sensors 1747 | . . . . . . . . . . . . . . . 1 . 450 771 263 262 . . . . Structural 3376 | . . . . . . . 442 410 1748 409 129 171 67 . . . . . . . . . . . Seismic 1757 | . 334 839 569 15 . . . . . . . . . . . . . . . . . . . . Robot Analysis Total 4 | . . . . . . . . . . . . . . . . . . . 4 . . . . . Derelict Logs Recovered 13 | . . 3 . 2 . . 1 1 1 3 . . . . . . . 1 . 1 . . . . Drone Launches . | . . . . . . . . . . . . . . . . . . . . . . . . . Drone Recoveries . | . . . . . . . . . . . . . . . . . . . . . . . . . Exploration | -11 -10 -10 -10 -9 -8 -7 -7 -7 -7 -6 -6 -6 -6 -6 -6 -5 -5 -5 -5 -4 -4 -3 -3 -2 ------------- Run | Yrd Mat Min Exi Min Mat Fac Low Low Zio Pro Fac Was Fac Ext Cet Fac Upp Upp Zhi Pro Fac Res DSF Res Turns Passed 19797 | 239 334 839 569 941 1150 554 649 1006 1798 573 129 171 1130 818 442 593 494 785 263 560 2899 117 255 2489 Spaces Moved 10704 | 123 195 505 355 566 612 389 429 583 1089 278 124 127 663 381 196 330 234 459 154 305 1396 70 108 1033 Core 20 | 20 . . . . . . . . . . . . . . . . . . . . . . . . Treads 8465 | 103 195 505 355 566 101 . . 491 1089 272 . . 607 381 196 330 234 459 154 305 1396 70 108 548 Legs 2219 | . . . . . 511 389 429 92 . 6 124 127 56 . . . . . . . . . . 485 Wheels . | . . . . . . . . . . . . . . . . . . . . . . . . . Hover . | . . . . . . . . . . . . . . . . . . . . . . . . . Flight . | . . . . . . . . . . . . . . . . . . . . . . . . . Fastest Speed 45 | 50 160 160 160 160 120 120 120 120 163 45 100 100 100 158 152 160 160 160 160 160 160 166 166 45 Average Speed 150 | 142 160 160 160 160 126 129 121 158 163 175 100 100 153 158 159 160 160 160 160 160 160 166 166 121 Slowest Speed 260 | 160 160 160 160 160 160 190 190 243 163 250 100 100 260 158 225 160 160 160 160 160 166 166 166 225 Overloaded Moves 219 | . . . . . . . . . . 6 . . . . . . . . . . . . . 213 Propulsion Burnouts . | . . . . . . . . . . . . . . . . . . . . . . . . . Robots Hopped . | . . . . . . . . . . . . . . . . . . . . . . . . . Potential Cave-ins 2 | . . . . . . . . . . . . . . . . . . . . . . . . 2 Cave-ins Triggered . | . . . . . . . . . . . . . . . . . . . . . . . . . Teleports 1 | . . . . . . . . . . . . . . . . . . . . . 1 . . . Exploration Rate (%) 50 | 7 31 74 69 99 50 11 64 80 83 47 3 79 16 75 76 16 41 67 60 55 42 3 69 36 Regions Visited 24 Branch Regions 13 Pre-discovered Areas 4 | . . . 1 . . . . . . . . . . . . . . . 3 . . . . . Known Exits Taken 11 | . . . . . 1 1 . . . . . . 1 . 1 1 1 1 1 1 1 1 . . Unknown Exits Taken 10 | 1 1 1 1 1 . . 1 1 1 1 . . . 1 . . . . . . . . . . Scrap Searched 18 | . . 1 . . . . 4 5 2 1 . . . . . . 2 1 . 2 . . . . Spaces Dug 33 | . . . . . 2 . . . . . . . 1 . . . . 1 . . 19 . . 10 Terrain Destroyed 650 | . . . . . 2 2 2 5 . 12 . . 1 85 1 7 33 6 . 6 84 . 76 328 Melee 27 | . . . . . 2 . . . . . . . 1 . . . . 1 . . 18 . . 5 Projectile 124 | . . . . . . . 2 . . 1 . . . . 1 7 10 5 . 6 52 . 1 39 AOE 499 | . . . . . . 2 . 5 . 11 . . . 85 . . 23 . . . 14 . 75 284 Terrain Rammed . | . . . . . . . . . . . . . . . . . . . . . . . . . Walls Destroyed . | . . . . . . . . . . . . . . . . . . . . . . . . . Machines Disabled . | . . . . . . . . . . . . . . . . . . . . . . . . . Actions | -11 -10 -10 -10 -9 -8 -7 -7 -7 -7 -6 -6 -6 -6 -6 -6 -5 -5 -5 -5 -4 -4 -3 -3 -2 --------- Run | Yrd Mat Min Exi Min Mat Fac Low Low Zio Pro Fac Was Fac Ext Cet Fac Upp Upp Zhi Pro Fac Res DSF Res Total 13369 | 161 209 531 356 581 910 430 495 638 1115 313 130 171 779 560 300 359 319 498 172 332 1828 71 156 1955 Wait 1314 | . . 23 . . 201 5 4 8 1 . . 42 65 80 30 2 43 29 2 4 240 . 25 510 Move 10681 | 122 194 504 354 565 611 388 428 582 1088 277 124 126 662 380 195 329 233 458 153 304 1395 69 107 1033 Hop . | . . . . . . . . . . . . . . . . . . . . . . . . . Pick Up 224 | 14 5 1 2 . 24 10 6 10 6 3 2 3 16 . 20 4 1 . 5 1 29 . 5 57 Fast Attach 36 | . . . . . 4 1 3 . 4 . . . 3 2 2 . 2 2 3 2 2 . . 6 Attach 149 | 6 1 . . 1 6 2 5 5 . 7 3 . 8 . 9 2 . 1 2 . 24 2 1 64 Detach 33 | . . . . . . 1 3 . . . 1 . 4 . 2 . . . . . 2 . . 20 Swap 115 | . 1 . . 1 7 8 9 13 4 2 . . 3 5 9 4 5 3 1 3 20 . 2 15 Drop 150 | 2 2 . . 1 17 10 10 8 12 1 . . 15 2 18 1 3 1 6 1 11 . 1 28 Fire 530 | 17 6 3 . 13 38 5 27 12 . 23 . . 1 18 15 16 16 3 . 17 85 . 15 200 Melee 43 | . . . . . 2 . . . . . . . 2 . . . . 1 . . 20 . . 18 Ram . | . . . . . . . . . . . . . . . . . . . . . . . . . Kick 2 | . . . . . . . . . . . . . . . . . . . . . . . . 2 Crush 2 | . . . . . . . . . . . . . . . . 1 . . . . . . . 1 Escape Stasis . | . . . . . . . . . . . . . . . . . . . . . . . . . Rewire 90 | . . . . . . . . . . . . . . 73 . . 16 . . . . . . 1 Trap . | . . . . . . . . . . . . . . . . . . . . . . . . . Miscellaneous . | . . . . . . . . . . . . . . . . . . . . . . . . . Route ------- -11/Scrapyard -10/Materials -10/Mines (discovered 3 exits: [*Mat x2] / *Exi) -10/Exiles -9/Mines (discovered 2 exits: *Mat x2) -8/Materials (discovered 3 exits: *Fac x2 / Sto) -7/Factory (discovered 2 exits: *Low x2) -7/Lower Caves -7/Lower Caves (discovered 2 exits: [Fac] / *Zio) -7/Zion -6/Proximity Caves -6/Factory -6/Waste -6/Factory (discovered 4 exits: Low x2 / *Ext x2) -6/Extension (discovered 3 exits: *Fac x2 / *Cet) -6/Cetus (discovered 2 exits: *Fac / [*Arc]) -5/Factory -5/Upper Caves -5/Upper Caves (discovered 2 exits: *Fac / *Zhi) -5/Zhirov -4/Proximity Caves -4/Factory -3/Research (discovered 2 exits: Res / DSF) -3/DSF -2/Research History --------- Turn | Location | Event 5 | -11/Scrapyard | Discovered new exit (range 13) 240 | -11/Scrapyard | Entered Materials 318 | -10/Materials | Build established: Mutant 363 | -10/Materials | Discovered new exit (range 8) 574 | -10/Materials | Entered Mines 599 | -10/Mines | Met a Derelict bent on vengeance 664 | -10/Mines | Learned location of 1 exit from Materials 664 | -10/Mines | Discovered new exit (range 5) 951 | -10/Mines | Learned Materials trap positions 1147 | -10/Mines | Learned Materials stockpile data 1192 | -10/Mines | Discovered new exit (range 9) 1278 | -10/Mines | Deemed a non-threat by the Exiles lab entrance 1278 | -10/Mines | Discovered new exit (range 5) 1413 | -10/Mines | Entered Exiles 1452 | -10/Exiles | Met 8R-AWN 1479 | -10/Exiles | Met EX-HEX 1549 | -10/Exiles | Met EX-DEC 1577 | -10/Exiles | Learned location of Zion (-7) 1604 | -10/Exiles | Met EX-BIN 1777 | -10/Exiles | Aligned with FarCom system 1778 | -10/Exiles | Given EX-Vault access code 1815 | -10/Exiles | Opened EX-Vault 1828 | -10/Exiles | Found Potential Leg 1830 | -10/Exiles | Found Potential Leg 1865 | -10/Exiles | Warned to stay clear of 0b10 Research branches 1961 | -10/Exiles | Discovered new exit (range 14) 1982 | -10/Exiles | Left Exiles lab with Potential Leg 1982 | -10/Exiles | Entered Mines 2052 | -9/Mines | Discovered new exit (range 9) 2179 | -9/Mines | Assisted by bots powering up and referring to "LRC-V3" 2665 | -9/Mines | Discovered new exit (range 9) 2923 | -9/Mines | Entered Materials 2923 | -8/Materials | Accompanied by 3 allies 2923 | -8/Materials | Evolved 4 slots: Propulsion x2, Weapon x2 2924 | -8/Materials | Identified exit to Storage 2925 | -8/Materials | Identified exit to Factory 2926 | -8/Materials | Loaded intel: 14 trap records 3085 | -8/Materials | Garrison activated, responded to threat 3160 | -8/Materials | Lost 3 allies 3204 | -8/Materials | Garrison activated, responded to threat 3228 | -8/Materials | Build established: Skirmisher 4009 | -8/Materials | Discovered exit to Factory (range 8) 4073 | -8/Materials | Entered Factory 4073 | -7/Factory | Evolved 2 slots: Power x1, Utility x1 4374 | -7/Factory | Discovered new exit (range 5) 4522 | -7/Factory | Identified exit to Lower Caves 4627 | -7/Factory | Entered Lower Caves 4658 | -7/Lower Caves | Learned Factory terminal intel 4761 | -7/Lower Caves | Encountered a Warlord checkpoint 4844 | -7/Lower Caves | Entered an active Warlord outpost 4853 | -7/Lower Caves | Learned Research security intel 5232 | -7/Lower Caves | Discovered new exit (range 4) 5276 | -7/Lower Caves | Entered another Lower Caves area 5276 | -7/Lower Caves | Discovered new exit (range 16) 5382 | -7/Lower Caves | Attacked by a delusional Derelict stockpiling parts 5420 | -7/Lower Caves | System corruption reached 10% 5871 | -7/Lower Caves | Build established: Scavenger-Gunner 5998 | -7/Lower Caves | Learned 4 Factory zone layouts 6264 | -7/Lower Caves | Discovered new exit (range 12) 6282 | -7/Lower Caves | Entered Zion 6387 | -7/Zion | System corruption cleaned by Quarantine Array 6522 | -7/Zion | Discovered new exit (range 15) 6600 | -7/Zion | Build established: Scavenger-Mutant 6900 | -7/Zion | Build established: Scavenger-Skirmisher 6988 | -7/Zion | Given the Hacking Drone Bay 6988 | -7/Zion | Found Prototype Device 7121 | -7/Zion | Received a hallucinogenic algorithm 7416 | -7/Zion | Found CR-A16's Pointy Stick 8080 | -7/Zion | Entered Proximity Caves 8111 | -6/Proximity Caves | Learned Factory emergency access door positions 8150 | -6/Proximity Caves | Spotter reported a threat 8150 | -6/Proximity Caves | Spotter reported a threat 8203 | -6/Proximity Caves | Spotter reported a threat 8256 | -6/Proximity Caves | Spotter reported a threat 8256 | -6/Proximity Caves | Learned location of 1 exit from Factory 8266 | -6/Proximity Caves | Learned Factory stockpile data 8333 | -6/Proximity Caves | Spotter reported a threat 8376 | -6/Proximity Caves | Lost 4 parts (1n1u2w) 8474 | -6/Proximity Caves | Spotter reported a threat 8527 | -6/Proximity Caves | Spotter reported a threat 8538 | -6/Proximity Caves | Lost 3 parts (1p1n1w) 8611 | -6/Proximity Caves | Spotted B-75 Beast 8638 | -6/Proximity Caves | Discovered new exit (range 12) 8642 | -6/Proximity Caves | Attracted the attention of an 0b10 outpost 8653 | -6/Proximity Caves | Entered Factory 8653 | -6/Factory | Evolved 2 slots: Utility x2 8654 | -6/Factory | Identified exit to Factory 8658 | -6/Factory | Loaded intel: 28 terminal locations 8782 | -6/Factory | Sucked down chute 8782 | -6/Factory | Entered Waste 8783 | -6/Waste | Joined by Warlord forces that had cleared the area 8891 | -6/Waste | Discovered new exit (range 10) 8920 | -6/Waste | Build established: Mutant 8953 | -6/Waste | Entered Factory 8953 | -6/Factory | Accompanied by 20 allies 9532 | -6/Factory | Lost 3 allies 9652 | -6/Factory | Identified exit to Lower Caves 9652 | -6/Factory | Identified exit to Extension 9663 | -6/Factory | Build established: Tank 9936 | -6/Factory | Lost 4 allies 10083 | -6/Factory | Entered Extension 10083 | -6/Extension | Accompanied by 12 allies 10133 | -6/Extension | Rescued a captive Derelict 10135 | -6/Extension | Rescued a captive Derelict 10151 | -6/Extension | Rescued a captive Derelict 10295 | -6/Extension | Energy Cycler disabled 10295 | -6/Extension | Rescued a captive Derelict 10295 | -6/Extension | Rescued a captive Derelict 10296 | -6/Extension | Rescued A7 10296 | -6/Extension | Rescued a captive Derelict 10296 | -6/Extension | Rescued a captive Derelict 10297 | -6/Extension | Rescued a captive Derelict 10297 | -6/Extension | Rescued a captive Derelict 10302 | -6/Extension | Rescued a captive Derelict 10303 | -6/Extension | Rescued a captive Derelict 10307 | -6/Extension | Rescued a captive Derelict 10442 | -6/Extension | Spotted B-75 Beast 10475 | -6/Extension | Allies destroyed B-75 Beast 10483 | -6/Extension | Spotted B-75 Beast 10501 | -6/Extension | Allies destroyed B-75 Beast 10512 | -6/Extension | Discovered exit to Factory (range 15) 10513 | -6/Extension | Lost 3 allies 10523 | -6/Extension | Identified Hacking Drone Bay 10564 | -6/Extension | Build established: Commander-Tank 10803 | -6/Extension | Discovered exit to Factory (range 10) 10805 | -6/Extension | Discovered new exit (range 6) 10901 | -6/Extension | Entered Cetus 10901 | -6/Cetus | Accompanied by 22 allies (A7) 10906 | -6/Cetus | Acquired a Cetus Manufacturing Module code from A7 10915 | -6/Cetus | Spotted Cetus Guard 10916 | -6/Cetus | Spotted Cetus Guard 10919 | -6/Cetus | Spotted Cetus Guard 10919 | -6/Cetus | Spotted Cetus Guard 10923 | -6/Cetus | Allies destroyed Cetus Guard 10936 | -6/Cetus | Destroyed Cetus Guard 10939 | -6/Cetus | Destroyed Cetus Guard 10940 | -6/Cetus | Allies destroyed Cetus Guard 10966 | -6/Cetus | Lost 4 allies 10967 | -6/Cetus | System corruption reached 10% 11073 | -6/Cetus | Started Cetus Manufacturing Module 11084 | -6/Cetus | System corruption reached 30% 11098 | -6/Cetus | Manufactured an Enhanced Grunt 11116 | -6/Cetus | Discovered new exit (range 22) 11123 | -6/Cetus | Manufactured an Enhanced Grunt 11148 | -6/Cetus | Manufactured an Enhanced Grunt 11154 | -6/Cetus | Spotted Cetus Guard 11154 | -6/Cetus | Spotted Cetus Guard 11154 | -6/Cetus | Spotted Cetus Guard 11154 | -6/Cetus | Spotted Cetus Guard 11157 | -6/Cetus | Discovered exit to Factory (range 21) 11161 | -6/Cetus | Allies destroyed Cetus Guard 11169 | -6/Cetus | Allies destroyed Cetus Guard 11173 | -6/Cetus | Manufactured an Enhanced Grunt 11174 | -6/Cetus | Destroyed Cetus Guard 11179 | -6/Cetus | Destroyed Cetus Guard 11195 | -6/Cetus | Met Revision 17 11198 | -6/Cetus | Manufactured an Enhanced Grunt 11343 | -6/Cetus | Entered Factory 11343 | -5/Factory | Accompanied by 22 allies (A7) 11343 | -5/Factory | Evolved 2 slots: Propulsion x2 11717 | -5/Factory | Lost 10 allies 11922 | -5/Factory | Discovered new exit (range 7) 11929 | -5/Factory | Build established: Scavenger-Tank 11934 | -5/Factory | Identified exit to Upper Caves 11936 | -5/Factory | Entered Upper Caves 11936 | -5/Upper Caves | Accompanied by 3 allies 11986 | -5/Upper Caves | Attracted the attention of an 0b10 outpost 12044 | -5/Upper Caves | Lost 3 allies 12156 | -5/Upper Caves | Found Prototype Device 12156 | -5/Upper Caves | Identified Exp. Thermal Shield 12294 | -5/Upper Caves | Attracted the attention of an 0b10 checkpoint 12411 | -5/Upper Caves | Discovered new exit (range 10) 12421 | -5/Upper Caves | Identified exit to Upper Caves 12430 | -5/Upper Caves | Entered another Upper Caves area 12430 | -5/Upper Caves | Accompanied by 2 allies 12470 | -5/Upper Caves | Discovered new exit (range 15) 12486 | -5/Upper Caves | Learned Factory terminal intel 13144 | -5/Upper Caves | Discovered new exit (range 8) 13155 | -5/Upper Caves | Identified exit to Zhirov 13179 | -5/Upper Caves | Found Alien Artifact 13179 | -5/Upper Caves | Identified Core Expander 13179 | -5/Upper Caves | Installed Core Expander, added new Weapon slot 13215 | -5/Upper Caves | Entered Zhirov 13215 | -5/Zhirov | Accompanied by 2 allies 13215 | -5/Zhirov | Discovered new exit (range 3) 13244 | -5/Zhirov | Met Zhirov 13276 | -5/Zhirov | Learned location of Quarantine (-2) 13276 | -5/Zhirov | Learned location of Testing (-3) 13276 | -5/Zhirov | Learned location of Command (-1) 13291 | -5/Zhirov | Zhirov requested help retrieving the SGEMP Prototype 13325 | -5/Zhirov | Found Alien Artifact 13326 | -5/Zhirov | Identified Integrated Dissipator 13326 | -5/Zhirov | Installed Integrated Dissipator, increased core heat dissipation (+20) 13348 | -5/Zhirov | Found Alien Artifact 13471 | -5/Zhirov | Identified exit to Proximity Caves 13478 | -5/Zhirov | Entered Proximity Caves 13478 | -4/Proximity Caves | Accompanied by 2 allies 13481 | -4/Proximity Caves | Spotter reported a threat 13634 | -4/Proximity Caves | Spotter reported a threat 13712 | -4/Proximity Caves | Spotted B-86 Titan 13734 | -4/Proximity Caves | Spotter reported a threat 13746 | -4/Proximity Caves | Destroyed B-86 Titan 13761 | -4/Proximity Caves | Learned location of 1 exit from Research 13812 | -4/Proximity Caves | Attracted the attention of an 0b10 checkpoint 14028 | -4/Proximity Caves | Discovered new exit (range 7) 14036 | -4/Proximity Caves | Identified exit to Factory 14038 | -4/Proximity Caves | Entered Factory 14038 | -4/Factory | Evolved 2 slots: Power x1, Utility x1 14039 | -4/Factory | Loaded intel: 26 terminal locations 15348 | -4/Factory | Lost 3 parts (1p1u1w) 15591 | -4/Factory | System corruption reached 10% 15675 | -4/Factory | Lost 7 parts (1p2n2u2w) 15945 | -4/Factory | Discovered new exit (range 15) 16288 | -4/Factory | First assault squad dispatched 16434 | -4/Factory | Identified Transdimensional Reconstructor 16434 | -4/Factory | Warped through subspace 16936 | -4/Factory | Identified exit to Research 16937 | -4/Factory | Entered Research 16937 | -3/Research | Evolved 2 slots: Utility x2 16938 | -3/Research | Identified exit to Research 17054 | -3/Research | Identified exit to DSF 17054 | -3/Research | Entered DSF 17084 | -3/DSF | Additional patrols routed to DSF 17234 | -3/DSF | Discovered exit to Research (range 12) 17246 | -3/DSF | Sterilization system engaged 17266 | -3/DSF | Ambient heat levels rising (+10) 17267 | -3/DSF | Lost 3 parts (2u1w) 17269 | -3/DSF | Destroyed 10 combat bots 17281 | -3/DSF | Ambient heat levels rising (+10) 17296 | -3/DSF | Ambient heat levels rising (+10) 17309 | -3/DSF | Entered Research 17309 | -2/Research | Evolved 2 slots: Power x1, Utility x1 17445 | -2/Research | Lost 4 parts (1p1u2w) 17478 | -2/Research | Assembled infested ambush trap array 17515 | -2/Research | Spotted B-90 Cyclops 17551 | -2/Research | Revealed the true nature of CR-A16's Pointy Stick 17554 | -2/Research | Destroyed B-90 Cyclops 17559 | -2/Research | Search patrols dispatched 17609 | -2/Research | Lost 5 parts (2p2n1u) 17809 | -2/Research | Search patrols dispatched 17916 | -2/Research | Lost 6 parts (1p4n1w) 17984 | -2/Research | System corruption reached 10% 18332 | -2/Research | Build established: Generator-Tank 19020 | -2/Research | Destroyed 7 combat bots 19059 | -2/Research | First assault squad dispatched 19142 | -2/Research | Lost 4 parts (2u2w) 19531 | -2/Research | High security lockdown imminent 19563 | -2/Research | Lost 4 parts (1p1n1u1w) 19573 | -2/Research | Destroyed 7 combat bots 19611 | -2/Research | High security lockdown engaged 19658 | -2/Research | Garrison activated, responded to threat 19719 | -2/Research | Lost 9 parts (4p3u2w) 19736 | -2/Research | System corruption reached 30% 19762 | -2/Research | Lost 4 parts (1p1u2w) 19773 | -2/Research | Core integrity fell below 50% 19794 | -2/Research | Core integrity fell below 20% 19798 | -2/Research | Destroyed by L-61 Swordsman with Power Sword Last Messages --------------- 19784_ G-73 Enforcer unfolds itself. 19784_ L-61 Swordsman unfolds itself. 19784_ E-15 Imp unfolds itself. 19785_ Penetrated by Slug. 19785_ S-43 Plague destroyed. 19787_ Hds. Centrium Leg blown off. 19787_ E-15 Imp destroyed. 19787_ Acquired 13 matter. 19788_ Slug penetrates Graviton Restrictor. 19788_ L-61 Swordsman suffers critical hit (Burn). 19789_ S-43 Plague destroyed. 19790_ Hds. Centrium Leg blown off. 19790_ Imp. Energy Well blown off. 19790_ E-15 Imp destroyed. 19791_ Critical hit (Burn: +37). 19792_ Dropped Huge Storage Unit. 19794_ Potential Leg severed. 19795_ Acquired Segregator. 19796_ Critical hit (Burn: +37). Map ----- +----------------------------------------------------+ | ???# #????????????????? | | ???### # # #????????????????? | | ??## #????????????????? | | ??# # # #????????????????? | | ???# # #????????????????? | | ??## # # # #????????????????? | | ??# ### # #????????????????? | | ??# #?# # #????????????????? | | ??# # # #?# #####+####????????????????? | | ??# # # #?# #???# #???????????????????? | | ??# # #?# #?### ##??????????????????? | | ??# #?# ### #??????????????????? | | ??# # #?#^ ^ #??????????????????? | | ??# # # d ### #??????????????????? | | ??# ##^ ^ #??????????????????? | | ??# # #??????????????????? | | ??# # #??????????????????? | | ??# s% #??????????????????? | | ??# [%**#??????????????????? | | ??## h s%= #??????????????????? | | ???## s #??????????????????? | | ????# # #????????##????????? | | ????##+### = #???????? #????????? | | ??????? = """""== #? ????? #????????? | | ????? """""%=! #? ? #????????? | | ????# # """""@== #?? """" ?????????? | | ????# # /=ll= #?? """" ?????????? | | ????# # ==! #???"""" ??????????? | | ????# + ! #???"""" ??????????? | | ????# ?# b gg #???? ???????? | | ????# ??# gg #???? ???? | | ????#? ??# g ######+# # | | #####? ??# % % | | #??????# C C | | #??????# == %=%| %% !%[ | | [ #??????# [%%= %[ [ | | ##?????# ] ######;####### # | | % % ##?????#% #??? ?????# #? | | [%!##?????#% s #?# ???? ? | | !!%*########% #?# ? #????""" ? | | %%%%/ %%%=*== #?# ???#????""" ?? | | !!%########= #?# ] ?????????"" ?? | | ######?????# #?# ??????????? #?? | | #???##?????####+########?# ??????????? #?? | | ?????????????????????????# ! ??????????? #?? | | ?????????????????????????# ???????????######?? | | ??????????????????????????#####??????????????????? | | ?????????????????????????????????????????????????? | | ?????????????????????????????????????????????????? | | ?????????????????????????????????????????????????? | +----------------------------------------------------+ Best States ------------- Heat Dissipation 126 Coolant Potential 80 Energy Generation 81 Energy Capacity 1310 Matter Stores 300 Matter Capacity 600 Sight Range 22 Robot Scan Range 16 Terrain Scan Density 10 Base Temperature (-) 200 Armor Coverage 600 Resistance: KI 20 Core Shielding 30 Weapon Shielding 66 Weapon Cycling 15 Phase Shifting 15 Evasion (%) 70 Launcher Accuracy 30 Recoil Reduction 6 Energy Filtering 30 Offensive Hacking 14 Item Schematics ----------------- Hyp. Gauss Rifle | -7/Zion | Archive Med. Treads | -7/Zion | Archive Powered Hammer | -7/Zion | Archive Thermal Shield | -7/Zion | Archive Hvy. Riot Gun | -7/Zion | Free Barrage Gun | -7/Zion | Free Slug Cannon | -7/Zion | Free Plasma Flamer | -7/Zion | Free Thermic Laser | -7/Zion | Archive Matter Filter | -7/Zion | Archive Hpw. Shock Rifle | -7/Zion | Archive Coolant Injector | -7/Zion | Archive Imp. Thermal Generator | -7/Zion | Archive Kinecellerator | -7/Zion | Archive Hvy. Pick | -7/Zion | Archive Gauss Rifle | -7/Zion | Archive Adv. Shield Generator | -7/Zion | Archive Wave Gun | -7/Zion | Archive Corruption Screen | -7/Zion | Archive Assault Drone Bay | -5/Zhirov | Free Exp. Heat Sink | -5/Zhirov | Free Exp. Optical Array | -5/Zhirov | Free Imp. Arc Thrower | -5/Zhirov | Free Robot Schematics ------------------ S-27 Virus | -7/Zion | Archive Y-54 Guardian | -7/Zion | Archive L-31 Rogue | -7/Zion | Archive Fabricated ------------ Nothing Repaired ---------- Nothing Alien Tech Used ----------------- Core Expander Integrated Dissipator Transdimensional Reconstructor Achievements -------------- None Challenges ------------ None Game ------ Seed ConcussiveCoolantOptics Manual? 0 Play Time 03:02:56 Cumulative 197.5 hours Start 2025.08.24 @ 09:41:33 End 2025.08.24 @ 15:43:21 Sessions 3 Manual Loads 0 Difficulty Rogue Special Mode None Game No. 304 Rogue 304 Adventurer 0 Explorer 0 Win Type - Total 4 Types 3/0/1/0/0/0/0/0/0/0 Lore% 79 Gallery% 75 Achievement% 55 Wizard Run 0 Options --------- Layout 1 ASCII 0 Keyboard 0 Movement Mouse Keybinds 0 Fullscreen 1 Font 24/Smallcaps Map View 50x40 Zoom Use 0% Tactical HUD 1 Map Filters NONE Filters NONE Steam 1 RUN: 45e5fb2c-d992-426a-a192-45ab3a60c605